[Event "Dalheimers Hus Rapid Open"]
[Site "Dalheimers Hus, Slottsskogsgatan 12, Gothenburg, Sweden"]
[Date "2024.04.14"]
[Round "5.3"]
[White "Cramling, Pia"]
[Black "Olsson, William"]
[Result "0-1"]
[TimeControl "15 minutes + 5 seconds per move from move one."]
[WhiteTitle "GM"]
[BlackTitle "FM"]
[WhiteFideId "1700030"]
[BlackFideId "1741721"]
[WhiteElo "2377"]
[BlackElo "2159"]

1. d4 {[%clk 00:15:08]} {[%emt 00:00:01]} d5 {[%clk 00:15:08]} {[%emt
00:00:02]} 2. c4 {[%clk 00:15:11]} {[%emt 00:00:02]} c6 {[%clk 00:15:12]}
{[%emt 00:00:01]} 3. Nf3 {[%clk 00:15:15]} {[%emt 00:00:01]} Nf6 {[%clk
00:15:15]} {[%emt 00:00:02]} 4. Qc2 {[%clk 00:15:15]} {[%emt 00:00:04]} dxc4
{[%clk 00:15:19]} {[%emt 00:00:02]} 5. Qxc4 {[%clk 00:15:19]} {[%emt 00:00:02]}
Bg4 {[%clk 00:15:22]} {[%emt 00:00:01]} 6. Nbd2 {[%clk 00:15:19]} {[%emt
00:00:05]} e6 {[%clk 00:15:22]} {[%emt 00:00:05]} 7. g3 {[%clk 00:15:19]}
{[%emt 00:00:05]} Nbd7 {[%clk 00:15:11]} {[%emt 00:00:16]} 8. Bg2 {[%clk
00:15:22]} {[%emt 00:00:01]} Be7 {[%clk 00:15:08]} {[%emt 00:00:08]} 9. O-O
{[%clk 00:15:16]} {[%emt 00:00:12]} O-O {[%clk 00:15:10]} {[%emt 00:00:03]} 10.
Qb3 {[%clk 00:15:15]} {[%emt 00:00:05]} b5 {[%clk 00:15:05]} {[%emt 00:00:11]}
11. a4 {[%clk 00:14:37]} {[%emt 00:00:43]} a6 {[%clk 00:15:09]} {[%emt
00:00:02]} 12. h3 {[%clk 00:13:35]} {[%emt 00:01:06]} Bh5 {[%clk 00:15:13]}
{[%emt 00:00:02]} 13. g4 {[%clk 00:13:24]} {[%emt 00:00:16]} Bg6 {[%clk
00:15:16]} {[%emt 00:00:02]} 14. Nh4 {[%clk 00:13:20]} {[%emt 00:00:08]} Qb6
{[%clk 00:14:23]} {[%emt 00:00:58]} 15. Nxg6 {[%clk 00:12:56]} {[%emt
00:00:29]} hxg6 {[%clk 00:14:26]} {[%emt 00:00:02]} 16. Nf3 {[%clk 00:12:23]}
{[%emt 00:00:38]} Rac8 {[%clk 00:12:56]} {[%emt 00:01:35]} 17. axb5 {[%clk
00:12:17]} {[%emt 00:00:11]} axb5 {[%clk 00:12:48]} {[%emt 00:00:13]} 18. Bd2
{[%clk 00:11:46]} {[%emt 00:00:35]} c5 {[%clk 00:12:45]} {[%emt 00:00:09]} 19.
Ra5 {[%clk 00:10:49]} {[%emt 00:01:00]} b4 {[%clk 00:12:21]} {[%emt 00:00:30]}
20. Qa4 {[%clk 00:10:30]} {[%emt 00:00:23]} cxd4 {[%clk 00:09:12]} {[%emt
00:03:14]} 21. Rb5 {[%clk 00:09:56]} {[%emt 00:00:40]} Qd8 {[%clk 00:07:52]}
{[%emt 00:01:25]} 22. Bxb4 {[%clk 00:09:27]} {[%emt 00:00:34]} Nc5 {[%clk
00:05:56]} {[%emt 00:02:01]} 23. Bxc5 {[%clk 00:08:21]} {[%emt 00:01:11]} Bxc5
{[%clk 00:05:59]} {[%emt 00:00:02]} 24. Ne5 {[%clk 00:08:11]} {[%emt 00:00:14]}
Qd6 {[%clk 00:05:08]} {[%emt 00:00:57]} 25. Nd3 {[%clk 00:07:37]} {[%emt
00:00:39]} Bb6 {[%clk 00:04:44]} {[%emt 00:00:30]} 26. Qb4 {[%clk 00:06:32]}
{[%emt 00:01:07]} Bc7 {[%clk 00:04:27]} {[%emt 00:00:24]} 27. Qxd6 {[%clk
00:06:31]} {[%emt 00:00:06]} Bxd6 {[%clk 00:04:31]} {[%emt 00:00:02]} 28. Ra1
{[%clk 00:06:00]} {[%emt 00:00:35]} Rb8 {[%clk 00:04:22]} {[%emt 00:00:14]} 29.
Rxb8 {[%emt 00:00:31]} Rxb8 {[%clk 00:04:24]} {[%emt 00:00:02]} 30. Ra6 {[%clk
00:05:31]} {[%emt 00:00:08]} Bf8 {[%clk 00:02:39]} {[%emt 00:01:50]} 31. Ra4
{[%clk 00:05:06]} {[%emt 00:00:31]} e5 {[%clk 00:02:25]} {[%emt 00:00:19]} 32.
Nxe5 {[%clk 00:05:01]} {[%emt 00:00:10]} Rxb2 {[%clk 00:02:29]} {[%emt
00:00:02]} 33. Bf3 {[%clk 00:04:41]} {[%emt 00:00:24]} Bd6 {[%clk 00:02:13]}
{[%emt 00:00:21]} 34. Nd3 {[%clk 00:04:19]} {[%emt 00:00:26]} Rb1+ {[%clk
00:02:17]} {[%emt 00:00:02]} 35. Kg2 {[%clk 00:04:23]} {[%emt 00:00:01]} g5
{[%clk 00:01:52]} {[%emt 00:00:30]} 36. Rxd4 {[%clk 00:04:24]} {[%emt
00:00:03]} Rb6 {[%clk 00:01:54]} {[%emt 00:00:04]} 37. Ra4 {[%clk 00:04:19]}
{[%emt 00:00:10]} g6 {[%clk 00:01:34]} {[%emt 00:00:24]} 38. Ra5 {[%clk
00:03:57]} {[%emt 00:00:28]} Nh7 {[%clk 00:01:23]} {[%emt 00:00:16]} 39. Bd5
{[%clk 00:03:46]} {[%emt 00:00:15]} Bb8 {[%clk 00:01:02]} {[%emt 00:00:28]} 40.
Ba2 {[%clk 00:03:31]} {[%emt 00:00:18]} Kg7 {[%clk 00:01:01]} {[%emt 00:00:08]}
41. Nc5 {[%clk 00:02:41]} {[%emt 00:00:53]} Rb2 {[%clk 00:00:41]} {[%emt
00:00:26]} 42. Nd7 {[%clk 00:02:04]} {[%emt 00:00:41]} Bd6 {[%clk 00:00:31]}
{[%emt 00:00:17]} 43. Bc4 {[%clk 00:01:47]} {[%emt 00:00:21]} Rb7 {[%clk
00:00:34]} {[%emt 00:00:02]} 44. Bb5 {[%clk 00:01:32]} {[%emt 00:00:19]} Bb4
{[%clk 00:00:38]} {[%emt 00:00:02]} 45. Bc6 {[%clk 00:01:30]} {[%emt 00:00:07]}
Rxd7 {[%clk 00:00:42]} {[%emt 00:00:01]} 46. Rb5 {[%clk 00:01:34]} Rc7 {[%clk
00:00:45]} {[%emt 00:00:02]} 47. Be4 {[%clk 00:01:32]} {[%emt 00:00:07]} Be7
{[%clk 00:00:48]} {[%emt 00:00:02]} 48. Bd3 {[%clk 00:01:36]} Nf8 {[%clk
00:00:50]} {[%emt 00:00:03]} 49. e3 {[%clk 00:01:36]} {[%emt 00:00:04]} Ne6
{[%clk 00:00:51]} {[%emt 00:00:05]} 50. Rb2 {[%clk 00:01:33]} {[%emt 00:00:07]}
Bf6 {[%clk 00:00:55]} {[%emt 00:00:02]} 51. Ra2 {[%clk 00:01:36]} {[%emt
00:00:02]} Nc5 {[%clk 00:00:56]} {[%emt 00:00:04]} 52. Be2 {[%clk 00:01:38]}
{[%emt 00:00:03]} Rb7 {[%clk 00:00:56]} {[%emt 00:00:05]} 53. Bf3 {[%clk
00:01:37]} {[%emt 00:00:02]} Rb2 {[%clk 00:01:00]} {[%emt 00:00:05]} 54. Ra7
{[%clk 00:01:37]} {[%emt 00:00:06]} Nd3 {[%clk 00:00:51]} {[%emt 00:00:13]} 55.
Bd5 {[%clk 00:01:40]} {[%emt 00:00:01]} Rxf2+ {[%clk 00:00:26]} {[%emt
00:00:31]} 56. Kg1 {[%clk 00:01:34]} {[%emt 00:00:10]} Be5 {[%clk 00:00:30]}
{[%emt 00:00:02]} 57. Bc4 {[%clk 00:01:04]} {[%emt 00:00:35]} Bh2+ {[%clk
00:00:34]} {[%emt 00:00:02]} 58. Kh1 {[%clk 00:01:08]} Ne5 {[%clk 00:00:38]}
{[%emt 00:00:01]} 59. Ba2 {[%clk 00:01:00]} {[%emt 00:00:11]} Bg3 {[%clk
00:00:39]} {[%emt 00:00:06]} 60. Bd5 {[%clk 00:01:03]} {[%emt 00:00:01]} Re2
{[%clk 00:00:25]} {[%emt 00:00:19]} 61. Ra3 {[%clk 00:00:46]} {[%emt 00:00:22]}
Bf2 {[%clk 00:00:24]} {[%emt 00:00:06]} 62. Kg2 {[%clk 00:00:40]} {[%emt
00:00:10]} Rxe3 {[%clk 00:00:28]} {[%emt 00:00:02]} 0-1

[Event "Dalheimers Hus Rapid Open"]
[Site "Dalheimers Hus, Slottsskogsgatan 12, Gothenburg, Sweden"]
[Date "2024.04.14"]
[Round "5.4"]
[White "Storme, Isak"]
[Black "Svensson, Bengt"]
[Result "0-1"]
[TimeControl "15 minutes + 5 seconds per move from move one."]
[WhiteTitle "IM"]
[BlackTitle "IM"]
[WhiteFideId "1728113"]
[BlackFideId "1700200"]
[WhiteElo "2352"]
[BlackElo "2281"]

1. e4 {[%clk 00:15:07]} {[%emt 00:00:02]} c5 {[%clk 00:15:03]} {[%emt
00:01:02]} 2. Nf3 {[%clk 00:15:09]} {[%emt 00:00:02]} d6 {[%clk 00:14:52]}
{[%emt 00:00:16]} 3. Bb5+ {[%clk 00:15:12]} {[%emt 00:00:02]} Bd7 {[%clk
00:14:51]} {[%emt 00:00:07]} 4. Bxd7+ {[%clk 00:15:09]} {[%emt 00:00:07]} Qxd7
{[%clk 00:14:54]} {[%emt 00:00:02]} 5. c4 {[%clk 00:14:52]} {[%emt 00:00:22]}
Nf6 {[%clk 00:14:50]} {[%emt 00:00:10]} 6. Nc3 {[%clk 00:14:55]} {[%emt
00:00:01]} g6 {[%clk 00:14:52]} {[%emt 00:00:04]} 7. d4 {[%clk 00:14:54]}
{[%emt 00:00:05]} cxd4 {[%clk 00:14:53]} {[%emt 00:00:05]} 8. Nxd4 {[%clk
00:14:56]} {[%emt 00:00:03]} Bg7 {[%clk 00:14:55]} {[%emt 00:00:03]} 9. f3
{[%clk 00:14:51]} {[%emt 00:00:11]} O-O {[%clk 00:14:55]} {[%emt 00:00:05]} 10.
Be3 {[%clk 00:14:24]} {[%emt 00:00:31]} Nc6 {[%clk 00:14:46]} {[%emt 00:00:15]}
11. O-O {[%clk 00:14:19]} {[%emt 00:00:09]} Rac8 {[%clk 00:14:04]} {[%emt
00:00:48]} 12. b3 {[%clk 00:13:58]} {[%emt 00:00:26]} a6 {[%clk 00:12:30]}
{[%emt 00:01:39]} 13. a4 {[%clk 00:13:12]} {[%emt 00:00:50]} e6 {[%clk
00:11:33]} {[%emt 00:01:03]} 14. Rc1 {[%clk 00:11:37]} {[%emt 00:01:40]} Rfd8
{[%clk 00:10:25]} {[%emt 00:01:13]} 15. Nxc6 {[%clk 00:09:54]} {[%emt
00:01:47]} bxc6 {[%clk 00:09:15]} {[%emt 00:01:16]} 16. a5 {[%clk 00:08:56]}
{[%emt 00:01:03]} c5 {[%clk 00:07:05]} {[%emt 00:02:15]} 17. Na4 {[%clk
00:08:15]} {[%emt 00:00:46]} Rb8 {[%clk 00:06:54]} {[%emt 00:00:16]} 18. Nb6
{[%clk 00:06:50]} {[%emt 00:01:30]} Qc6 {[%clk 00:06:29]} {[%emt 00:00:29]} 19.
Qc2 {[%clk 00:06:09]} {[%emt 00:00:46]} Nd7 {[%clk 00:05:47]} {[%emt 00:00:48]}
20. Nxd7 {[%clk 00:06:08]} {[%emt 00:00:05]} Rxd7 {[%clk 00:05:50]} {[%emt
00:00:03]} 21. Rfd1 {[%clk 00:06:02]} {[%emt 00:00:11]} Bd4 {[%clk 00:04:43]}
{[%emt 00:01:12]} 22. Qd3 {[%clk 00:03:59]} {[%emt 00:02:07]} e5 {[%clk
00:04:26]} {[%emt 00:00:22]} 23. Kf1 {[%clk 00:03:51]} {[%emt 00:00:13]} Kg7
{[%clk 00:03:43]} {[%emt 00:00:48]} 24. Rb1 {[%clk 00:03:36]} {[%emt 00:00:20]}
Rdb7 {[%clk 00:03:24]} {[%emt 00:00:24]} 25. Bd2 {[%clk 00:03:23]} {[%emt
00:00:18]} Qd7 {[%clk 00:03:07]} {[%emt 00:00:23]} 26. Re1 {[%clk 00:02:48]}
{[%emt 00:00:40]} Qe7 {[%clk 00:02:29]} {[%emt 00:00:43]} 27. Be3 {[%clk
00:02:44]} {[%emt 00:00:09]} Qc7 {[%clk 00:02:14]} {[%emt 00:00:20]} 28. Bd2
{[%clk 00:02:45]} {[%emt 00:00:04]} Qe7 {[%clk 00:02:17]} {[%emt 00:00:02]} 29.
g3 {[%clk 00:02:44]} {[%emt 00:00:05]} Qe6 {[%clk 00:02:14]} {[%emt 00:00:09]}
30. Kg2 {[%clk 00:02:45]} {[%emt 00:00:03]} h5 {[%clk 00:02:07]} {[%emt
00:00:13]} 31. h3 {[%clk 00:02:41]} {[%emt 00:00:09]} f5 {[%clk 00:01:39]}
{[%emt 00:00:33]} 32. exf5 {[%clk 00:01:34]} {[%emt 00:01:12]} gxf5 {[%clk
00:01:30]} {[%emt 00:00:14]} 33. Be3 {[%clk 00:01:32]} {[%emt 00:00:06]} Qg6
{[%clk 00:01:10]} {[%emt 00:00:26]} 34. Bxd4 {[%clk 00:01:28]} {[%emt
00:00:09]} cxd4 {[%clk 00:01:14]} {[%emt 00:00:02]} 35. f4 {[%clk 00:01:15]}
{[%emt 00:00:17]} Re7 {[%clk 00:00:50]} {[%emt 00:00:29]} 36. c5 {[%clk
00:01:05]} {[%emt 00:00:14]} dxc5 {[%clk 00:00:39]} {[%emt 00:00:17]} 37. Rxe5
{[%clk 00:00:58]} {[%emt 00:00:12]} Rxe5 {[%clk 00:00:43]} {[%emt 00:00:01]} 38.
fxe5 {[%clk 00:01:02]} h4 {[%clk 00:00:43]} {[%emt 00:00:05]} 39. Rc1 {[%clk
00:00:24]} {[%emt 00:00:42]} Qxg3+ {[%clk 00:00:34]} {[%emt 00:00:15]} 40.
Qxg3+ {[%clk 00:00:27]} {[%emt 00:00:02]} hxg3 {[%clk 00:00:38]} {[%emt
00:00:01]} 41. Kxg3 {[%clk 00:00:10]} {[%emt 00:00:22]} Rxb3+ {[%clk 00:00:40]}
{[%emt 00:00:03]} 42. Kf4 {[%clk 00:00:13]} {[%emt 00:00:02]} Rc3 {[%clk
00:00:34]} {[%emt 00:00:11]} 43. Rb1 {[%clk 00:00:15]} {[%emt 00:00:03]} d3
{[%clk 00:00:30]} {[%emt 00:00:09]} 44. Kxf5 {[%clk 00:00:17]} {[%emt
00:00:03]} d2 {[%clk 00:00:32]} {[%emt 00:00:04]} 45. Rb7+ {[%clk 00:00:10]}
{[%emt 00:00:12]} Kf8 {[%clk 00:00:26]} {[%emt 00:00:11]} 46. Rd7 {[%clk
00:00:09]} {[%emt 00:00:04]} Rf3+ {[%clk 00:00:22]} {[%emt 00:00:10]} 47. Ke6
{[%clk 00:00:09]} {[%emt 00:00:05]} Rf2 {[%clk 00:00:20]} {[%emt 00:00:07]} 48.
Rd8+ {[%clk 00:00:12]} {[%emt 00:00:01]} Kg7 {[%clk 00:00:25]} 49. Rd7+ {[%clk
00:00:11]} {[%emt 00:00:06]} Kg6 {[%clk 00:00:26]} {[%emt 00:00:04]} 50. Ke7
{[%clk 00:00:10]} {[%emt 00:00:05]} c4 {[%clk 00:00:27]} {[%emt 00:00:04]} 51.
Rd6+ {[%clk 00:00:14]} Kg7 {[%clk 00:00:30]} {[%emt 00:00:03]} 52. e6 {[%clk
00:00:14]} {[%emt 00:00:05]} c3 {[%clk 00:00:33]} {[%emt 00:00:02]} 53. Kd8
{[%clk 00:00:10]} {[%emt 00:00:08]} c2 {[%clk 00:00:17]} {[%emt 00:00:21]} 54.
Rd7+ {[%clk 00:00:14]} Kh6 {[%clk 00:00:14]} {[%emt 00:00:09]} 55. e7 {[%clk
00:00:13]} {[%emt 00:00:06]} Re2 {[%clk 00:00:15]} {[%emt 00:00:04]} 56. Rd6+
{[%clk 00:00:13]} {[%emt 00:00:05]} Kh7 {[%clk 00:00:16]} {[%emt 00:00:04]} 57.
Rd7 {[%clk 00:00:10]} {[%emt 00:00:08]} Kh6 {[%clk 00:00:15]} {[%emt 00:00:06]}
58. Rd6+ {[%clk 00:00:14]} Kh5 {[%clk 00:00:13]} {[%emt 00:00:07]} 59. Rd5+
{[%clk 00:00:13]} {[%emt 00:00:06]} Kh4 {[%clk 00:00:14]} {[%emt 00:00:04]} 60.
Rd4+ {[%clk 00:00:14]} {[%emt 00:00:04]} Kxh3 {[%clk 00:00:16]} {[%emt
00:00:03]} 61. Rd3+ {[%clk 00:00:12]} {[%emt 00:00:07]} Kh2 {[%clk 00:00:18]}
0-1

[Event "Dalheimers Hus Rapid Open"]
[Site "Dalheimers Hus, Slottsskogsgatan 12, Gothenburg, Sweden"]
[Date "2024.04.14"]
[Round "5.5"]
[White "Ruonala, Robert"]
[Black "Seo, Jung Min"]
[Result "0-1"]
[TimeControl "15 minutes + 5 seconds per move from move one."]
[BlackTitle "IM"]
[WhiteFideId "1724703"]
[BlackFideId "1734687"]
[WhiteElo "2044"]
[BlackElo "2450"]

1. e4 {[%clk 00:15:08]} {[%emt 00:00:02]} c5 {[%clk 00:15:10]} 2. Nf3 {[%clk
00:15:12]} d6 {[%clk 00:15:14]} 3. d4 {[%clk 00:15:15]} cxd4 {[%clk 00:15:19]}
{[%emt 00:00:01]} 4. c3 {[%clk 00:15:19]} dxc3 {[%clk 00:15:03]} {[%emt
00:00:20]} 5. Nxc3 {[%clk 00:15:22]} {[%emt 00:00:02]} Nc6 {[%clk 00:15:07]} 6.
Bc4 {[%clk 00:15:25]} {[%emt 00:00:02]} a6 {[%clk 00:15:10]} {[%emt 00:00:03]}
7. O-O {[%clk 00:15:25]} {[%emt 00:00:05]} Nf6 {[%clk 00:15:09]} {[%emt
00:00:06]} 8. Qe2 {[%clk 00:15:20]} {[%emt 00:00:10]} Bg4 {[%clk 00:15:11]}
{[%emt 00:00:02]} 9. Rd1 {[%clk 00:15:24]} {[%emt 00:00:02]} e6 {[%clk
00:15:03]} {[%emt 00:00:13]} 10. Bf4 {[%clk 00:15:10]} {[%emt 00:00:19]} Be7
{[%clk 00:14:02]} {[%emt 00:01:06]} 11. h3 {[%clk 00:13:19]} {[%emt 00:01:56]}
Bxf3 {[%clk 00:14:06]} {[%emt 00:00:02]} 12. Qxf3 {[%clk 00:13:21]} {[%emt
00:00:02]} Qa5 {[%clk 00:13:36]} {[%emt 00:00:36]} 13. Qe2 {[%clk 00:10:11]}
{[%emt 00:03:14]} Rd8 {[%clk 00:12:50]} {[%emt 00:00:51]} 14. g4 {[%clk
00:10:14]} {[%emt 00:00:01]} O-O {[%clk 00:12:35]} {[%emt 00:00:22]} 15. a3
{[%clk 00:09:45]} {[%emt 00:00:34]} Nd7 {[%clk 00:10:37]} {[%emt 00:02:03]} 16.
Bxd6 {[%clk 00:09:27]} {[%emt 00:00:22]} Bxd6 {[%clk 00:10:41]} {[%emt
00:00:02]} 17. Rxd6 {[%clk 00:09:29]} {[%emt 00:00:02]} Nde5 {[%clk 00:10:42]}
{[%emt 00:00:04]} 18. Rad1 {[%clk 00:08:23]} {[%emt 00:01:11]} Rxd6 {[%clk
00:10:45]} {[%emt 00:00:03]} 19. Rxd6 {[%clk 00:08:25]} {[%emt 00:00:03]} Qc5
{[%clk 00:10:47]} {[%emt 00:00:03]} 0-1

[Event "Dalheimers Hus Rapid Open"]
[Site "Dalheimers Hus, Slottsskogsgatan 12, Gothenburg, Sweden"]
[Date "2024.04.14"]
[Round "5.6"]
[White "Sjoholm, Emil"]
[Black "Winsnes, Rikard"]
[Result "1/2-1/2"]
[TimeControl "15 minutes + 5 seconds per move from move one."]
[BlackTitle "IM"]
[WhiteFideId "1720449"]
[BlackFideId "1700430"]
[WhiteElo "2016"]
[BlackElo "2352"]

1. e4 {[%clk 00:15:04]} {[%emt 00:01:01]} c5 {[%clk 00:15:01]} {[%emt
00:00:11]} 2. Nf3 {[%clk 00:15:10]} {[%emt 00:00:02]} d6 {[%clk 00:14:57]}
{[%emt 00:00:09]} 3. d4 {[%clk 00:15:13]} {[%emt 00:00:02]} cxd4 {[%clk
00:14:57]} {[%emt 00:00:06]} 4. Nxd4 {[%clk 00:15:15]} {[%emt 00:00:02]} Nf6
{[%clk 00:14:58]} {[%emt 00:00:04]} 5. Nc3 {[%clk 00:15:18]} {[%emt 00:00:03]}
g6 {[%clk 00:14:59]} {[%emt 00:00:04]} 6. Be3 {[%clk 00:14:43]} {[%emt
00:00:40]} Bg7 {[%clk 00:14:58]} {[%emt 00:00:06]} 7. f3 {[%clk 00:14:37]}
{[%emt 00:00:12]} Nc6 {[%clk 00:14:56]} {[%emt 00:00:07]} 8. Qd2 {[%clk
00:14:37]} {[%emt 00:00:05]} O-O {[%clk 00:14:54]} {[%emt 00:00:06]} 9. Bc4
{[%clk 00:14:39]} {[%emt 00:00:03]} Nxd4 {[%clk 00:14:53]} {[%emt 00:00:07]} 10.
Bxd4 {[%clk 00:14:40]} {[%emt 00:00:03]} Be6 {[%clk 00:14:52]} {[%emt
00:00:05]} 11. Bxe6 {[%clk 00:14:18]} {[%emt 00:00:27]} fxe6 {[%clk 00:14:52]}
{[%emt 00:00:06]} 12. O-O-O {[%clk 00:13:56]} {[%emt 00:00:26]} Qa5 {[%clk
00:13:55]} {[%emt 00:01:03]} 13. Kb1 {[%clk 00:13:44]} {[%emt 00:00:16]} b5
{[%clk 00:11:19]} {[%emt 00:02:42]} 14. h4 {[%clk 00:13:41]} {[%emt 00:00:08]}
b4 {[%clk 00:10:50]} {[%emt 00:00:34]} 15. Ne2 {[%clk 00:13:38]} {[%emt
00:00:08]} Rfd8 {[%clk 00:08:45]} {[%emt 00:02:11]} 16. h5 {[%clk 00:12:31]}
{[%emt 00:01:12]} Nxh5 {[%clk 00:08:45]} {[%emt 00:00:05]} 17. Bxg7 {[%clk
00:12:30]} {[%emt 00:00:05]} Nxg7 {[%clk 00:04:46]} {[%emt 00:04:05]} 18. Qh6
{[%clk 00:09:56]} {[%emt 00:02:38]} Kf7 {[%clk 00:04:32]} {[%emt 00:00:19]} 19.
Qf4+ {[%clk 00:09:25]} {[%emt 00:00:35]} Kg8 {[%clk 00:04:13]} {[%emt
00:00:25]} 20. Qh6 {[%clk 00:04:48]} {[%emt 00:04:42]} Kf7 {[%clk 00:04:14]}
{[%emt 00:00:04]} 21. Qxh7 {[%clk 00:04:21]} {[%emt 00:00:33]} Qg5 {[%clk
00:03:46]} {[%emt 00:00:32]} 22. Nd4 {[%clk 00:02:46]} {[%emt 00:01:41]} Qf6
{[%clk 00:02:50]} {[%emt 00:01:01]} 23. g4 {[%clk 00:02:31]} {[%emt 00:00:20]}
Rh8 {[%clk 00:02:35]} {[%emt 00:00:19]} 24. Qxh8 {[%clk 00:02:33]} {[%emt
00:00:03]} Rxh8 {[%clk 00:02:38]} {[%emt 00:00:02]} 25. Rxh8 {[%clk 00:02:37]}
{[%emt 00:00:02]} Nf5 {[%clk 00:02:39]} {[%emt 00:00:03]} 26. Rdh1 {[%clk
00:02:06]} {[%emt 00:00:36]} Qxd4 {[%clk 00:02:27]} {[%emt 00:00:17]} 27. gxf5
{[%clk 00:01:57]} {[%emt 00:00:15]} exf5 {[%clk 00:02:31]} {[%emt 00:00:01]} 28.
exf5 {[%clk 00:01:44]} {[%emt 00:00:17]} gxf5 {[%clk 00:02:35]} 29. R8h7+
{[%clk 00:01:34]} {[%emt 00:00:16]} Kf8 {[%clk 00:02:06]} {[%emt 00:00:33]} 30.
Re1 {[%clk 00:01:26]} {[%emt 00:00:14]} e5 {[%clk 00:02:10]} 31. b3 {[%clk
00:01:04]} {[%emt 00:00:27]} a5 {[%clk 00:02:12]} {[%emt 00:00:02]} 32. Reh1
{[%clk 00:00:51]} {[%emt 00:00:18]} e4 {[%clk 00:02:10]} {[%emt 00:00:07]} 33.
fxe4 {[%clk 00:00:53]} {[%emt 00:00:04]} fxe4 {[%clk 00:02:13]} {[%emt
00:00:02]} 34. Rf1+ {[%clk 00:00:45]} {[%emt 00:00:12]} Ke8 {[%clk 00:02:16]}
{[%emt 00:00:02]} 35. Rff7 {[%clk 00:00:07]} {[%emt 00:00:44]} e3 {[%clk
00:01:50]} {[%emt 00:00:31]} 36. Rb7 {[%clk 00:00:10]} {[%emt 00:00:02]} Qd1+
{[%clk 00:00:35]} {[%emt 00:01:20]} 37. Kb2 {[%clk 00:00:14]} {[%emt 00:00:01]}
Qd4+ {[%clk 00:00:39]} 38. Kb1 {[%clk 00:00:17]} {[%emt 00:00:02]} Qd1+ {[%clk
00:00:26]} {[%emt 00:00:17]} 39. Kb2 {[%clk 00:00:21]} {[%emt 00:00:02]} Qd4+
{[%clk 00:00:28]} {[%emt 00:00:02]} 40. Kb1 {[%clk 00:00:19]} {[%emt 00:00:07]}
Qd1+ {[%clk 00:00:30]} {[%emt 00:00:03]} 41. Kb2 {[%clk 00:00:23]} {[%emt
00:00:02]} 1/2-1/2

[Event "Dalheimers Hus Rapid Open"]
[Site "Dalheimers Hus, Slottsskogsgatan 12, Gothenburg, Sweden"]
[Date "2024.04.14"]
[Round "5.7"]
[White "Andreasson, Ingvar"]
[Black "Zachrisson, Mattias"]
[Result "1-0"]
[TimeControl "15 minutes + 5 seconds per move from move one."]
[WhiteFideId "1700294"]
[BlackFideId "1708384"]
[WhiteElo "2323"]
[BlackElo "2107"]

1. d4 {[%clk 00:15:04]} {[%emt 00:00:04]} Nf6 {[%clk 00:15:09]} {[%emt
00:00:02]} 2. Nf3 {[%clk 00:15:08]} g6 {[%clk 00:15:14]} 3. Nc3 {[%clk
00:15:12]} {[%emt 00:00:01]} d5 {[%clk 00:15:02]} {[%emt 00:00:17]} 4. Bf4
{[%clk 00:15:15]} Bg7 {[%clk 00:14:48]} {[%emt 00:00:20]} 5. e3 {[%clk
00:15:19]} {[%emt 00:00:02]} Nh5 {[%clk 00:14:11]} {[%emt 00:00:41]} 6. Be5
{[%clk 00:15:22]} {[%emt 00:00:02]} f6 {[%clk 00:14:08]} {[%emt 00:00:08]} 7.
Bg3 {[%clk 00:15:26]} O-O {[%clk 00:14:00]} {[%emt 00:00:13]} 8. Be2 {[%clk
00:14:53]} {[%emt 00:00:37]} Nxg3 {[%clk 00:13:23]} {[%emt 00:00:43]} 9. hxg3
{[%clk 00:14:56]} {[%emt 00:00:02]} c6 {[%clk 00:13:27]} 10. e4 {[%clk
00:14:45]} {[%emt 00:00:16]} Bg4 {[%clk 00:11:23]} {[%emt 00:02:09]} 11. Qd2
{[%clk 00:14:25]} {[%emt 00:00:24]} dxe4 {[%clk 00:09:16]} {[%emt 00:02:13]} 12.
Nxe4 {[%clk 00:13:51]} {[%emt 00:00:39]} Bxf3 {[%clk 00:08:05]} {[%emt
00:01:15]} 13. Bc4+ {[%clk 00:13:51]} {[%emt 00:00:06]} Kh8 {[%clk 00:07:50]}
{[%emt 00:00:20]} 14. gxf3 {[%clk 00:13:53]} {[%emt 00:00:02]} b5 {[%clk
00:05:10]} {[%emt 00:02:46]} 15. Bb3 {[%clk 00:12:55]} {[%emt 00:01:02]} Nd7
{[%clk 00:01:54]} {[%emt 00:03:21]} 16. O-O-O {[%clk 00:11:47]} {[%emt
00:01:13]} g5 {[%clk 00:01:59]} {[%emt 00:00:01]} 17. Nxg5 {[%clk 00:10:30]}
{[%emt 00:01:22]} fxg5 {[%clk 00:01:49]} {[%emt 00:00:15]} 18. Rxh7+ {[%clk
00:10:34]} {[%emt 00:00:01]} Kxh7 {[%clk 00:01:52]} {[%emt 00:00:02]} 19. Qd3+
{[%clk 00:10:38]} e5 {[%clk 00:00:57]} 1-0